Workbook

Sheet Výpočet
A1: Průměr terče : | C1: 50 | D1: cm | E1: Kruhů: | F1: 10 | G1: skryté konstanty | J1: (v obrázku na následujícím listu je průměr terče 50cm, hrana má 5 cm navíc)
A2: Průměr vnitřní: | C2: 20 | D2: =D1 -> cm | F2: ^ | G2: =IF(D1="m",100,IF(D1="mm",0.1,IF(D1="in",2.54,IF(D1="ft",2.54*12,1)))) -> 1
A3: Průměr 10tky: | C3: =C1/F1 -> 5 | D3: =D2 -> cm | E3: <---------- | F3: -----^
A4: Reálná vzdálenost: | C4: 50 | D4: m | G4: =IF(D4="m",100,IF(D4="mm",0.1,IF(D4="in",2.54,IF(D4="ft",2.54*12,1)))) -> 100
A5: Pozorovací úhel poloměru: | C5: =ATAN(((C1*$G$2)/2)/(C4*$G$4)) -> 0.004999958334 | D5: rad | E5: =C5*180/PI() -> 0.2864765103 | F5: deg
A6: Pozorovací úhel 1/2 vnitřní: | C6: =ATAN(((C2*$G$2)/2)/(C4*$G$4)) -> 0.001999997333 | D6: rad | E6: =C6*180/PI() -> 0.1145914062 | F6: deg
A7: Pozorovací úhel 1/2 10: | C7: =ATAN(((C3*$G$2)/2)/(C4*$G$4)) -> 0.0004999999583 | D7: rad | E7: =C7*180/PI() -> 0.02864788737 | F7: deg
B9: =CONCATENATE("Vzdálenost na simulátoru (",D4,")") -> Vzdálenost na simulátoru (m) | C9: =CONCATENATE("Potřebný průměr (",D1,")") -> Potřebný průměr (cm)
C10: terče | D10: vnitřní | E10: 10tky
B11: 1 | C11: =(TAN($C$5)*(B11*($G$4/$G$2)))*2 -> 1 | D11: =(TAN($C$6)*(B11*($G$4/$G$2)))*2 -> 0.4 | E11: =(TAN($C$7)*(B11*($G$4/$G$2)))*2 -> 0.1
B12: 2 | C12: =(TAN($C$5)*(B12*($G$4/$G$2)))*2 -> 2 | D12: =(TAN($C$6)*(B12*($G$4/$G$2)))*2 -> 0.8 | E12: =(TAN($C$7)*(B12*($G$4/$G$2)))*2 -> 0.2
B13: 3 | C13: 3 | D13: 1.2 | E13: 0.3
B14: 4 | C14: 4 | D14: 1.6 | E14: 0.4
B15: 4.5 | C15: 4.5 | D15: 1.8 | E15: 0.45
B16: 5 | C16: 5 | D16: 2 | E16: 0.5
B17: 5.5 | C17: 5.5 | D17: 2.2 | E17: 0.55
B18: 6 | C18: 6 | D18: 2.4 | E18: 0.6
B19: 7 | C19: 7 | D19: 2.8 | E19: 0.7
B20: 8 | C20: 8 | D20: 3.2 | E20: 0.8
B21: 9 | C21: 9 | D21: 3.6 | E21: 0.9
B22: 10 | C22: 10 | D22: 4 | E22: 1
B24: VYTIŠTĚNÝ TERČ
B25: =CONCATENATE("vzdálenost (",D4,")") -> vzdálenost (m) | C25: vel. (cm)
B26: 50 | C26: =(TAN($C$5)*(B26*($G$4/$G$2)))*2*$G$2 -> 50
D27: POZOR! Jakmile terč zmenšíte, soubor neukládejte!
A28: © Lukáš Plachý 28. 7. 2014 | C28: http://lukas.plachy.eu

Sheet Terč pro tisk
